bitfinex-derivatives/quotes_BTCF0:USTF0_20230901
["timestamp","ask_amount","ask_price","bid_price","bid_amount"]
[1693592570257,1.46734291,25488.0,25487.0,0.24932104]
[1693592572157,1.46734291,25488.0,25487.0,0.21832104]
[1693592573456,1.46734291,25488.0,25487.0,0.006]
[1693592574360,1.52749457,25488.0,25487.0,0.006]
[1693592574568,1.52749457,25488.0,25487.0,0.2515411]
[1693592575367,1.15780766,25488.0,25487.0,0.2515411]
[1693592575963,1.38028257,25488.0,25487.0,0.3987581]
[1693592576168,1.52749457,25488.0,25487.0,0.2515411]
[1693592576366,1.52749457,25488.0,25487.0,0.006]
[1693592576571,1.52749457,25488.0,25487.0,0.25153764]
[1693592578770,1.30501966,25488.0,25487.0,0.39875464]
[1693592579065,1.41811643,25488.0,25487.0,0.39875464]
[1693592579270,1.52749457,25488.0,25487.0,0.39875464]
[1693592579662,1.52749457,25488.0,25487.0,0.25153764]
[1693592579868,1.52749457,25488.0,25487.0,0.006]
[1693592580866,1.50749457,25488.0,25487.0,0.006]
[1693592581758,0.63602,25488.0,25487.0,0.447651]
[1693592581961,0.6321,25488.0,25487.0,0.86041661]
[1693592582363,0.6321,25488.0,25487.0,0.89123479]
[1693592582674,0.004,25488.0,25487.0,0.89123479]
[1693592584770,0.002,25488.0,25487.0,0.88623479]
[1693592584970,0.004,25488.0,25487.0,0.89823479]
[1693592589965,0.004,25488.0,25487.0,0.87823479]
[1693592590376,0.15663723,25491.0,25487.0,1.80633479]
[1693592590577,0.19575888,25492.0,25490.0,0.6281]
[1693592590578,0.15663723,25492.0,25490.0,0.6281]
[1693592590766,0.15663723,25492.0,25491.0,1.46242461]
[1693592590966,0.15663723,25492.0,25491.0,1.49324279]
[1693592591171,0.15663723,25493.0,25491.0,1.49324279]
[1693592591369,0.15663723,25493.0,25492.0,0.24554861]
[1693592591567,0.15663723,25493.0,25492.0,0.86511879]
[1693592592070,0.18778333,25494.0,25492.0,0.86511879]
[1693592592270,0.15663723,25494.0,25493.0,0.86509479]
[1693592593465,0.298276,25494.0,25493.0,0.68649869]
[1693592593673,1.29731288,25494.0,25493.0,0.39313469]
[1693592593975,1.32402891,25494.0,25493.0,0.39313469]
[1693592594165,1.34102891,25494.0,25493.0,0.39313469]
[1693592594572,1.34102891,25494.0,25493.0,0.39513469]
[1693592595076,1.51996644,25494.0,25493.0,0.39313469]
[1693592595267,1.31302891,25494.0,25493.0,0.39413469]
[1693592595472,1.34102891,25494.0,25493.0,0.39513469]
[1693592595672,1.55595827,25494.0,25493.0,0.39613469]
[1693592596076,0.70402,25494.0,25493.0,0.69050069]
[1693592596283,0.22870371,25494.0,25493.0,0.83768369]
[1693592596478,0.22870371,25494.0,25493.0,0.86850187]
[1693592596778,0.33988171,25494.0,25493.0,0.86750187]
[1693592596975,0.51897971,25494.0,25493.0,0.54331769]
[1693592597171,0.66614507,25494.0,25493.0,0.54331769]
[1693592597371,0.509454,25494.0,25493.0,0.54331769]
[1693592597572,0.62255077,25494.0,25493.0,0.54331769]
[1693592597879,0.81848013,25494.0,25493.0,0.54331769]
[1693592598081,0.92785827,25494.0,25493.0,0.54331769]
[1693592598379,0.62255077,25494.0,25493.0,0.54331769]
[1693592598575,0.481454,25494.0,25493.0,0.54331769]
[1693592598781,0.517454,25494.0,25493.0,0.54331769]
[1693592598982,0.71338336,25494.0,25493.0,0.54331769]
[1693592599168,0.93585827,25494.0,25493.0,0.54331769]
[1693592599777,0.370276,25494.0,25493.0,0.54331769]
[1693592599986,0.370276,25494.0,25493.0,0.57413587]
[1693592600171,0.56620536,25494.0,25493.0,0.54331769]
[1693592600376,0.56620536,25494.0,25493.0,0.69050069]
[1693592600686,0.07592,25494.0,25493.0,0.69050069]
[1693592601071,0.23257694,25494.0,25493.0,0.72131887]
[1693592601475,0.37975494,25494.0,25493.0,0.72131887]
[1693592601677,0.52693294,25494.0,25493.0,0.69050069]
[1693592601875,0.64002971,25494.0,25493.0,0.69050069]
[1693592602277,0.49093294,25494.0,25493.0,0.69050069]
[1693592602583,0.49093294,25494.0,25493.0,0.72031887]
[1693592602885,0.52693294,25494.0,25493.0,0.72131887]
[1693592603380,0.23257694,25494.0,25493.0,0.72131887]
[1693592603791,0.07592,25494.0,25493.0,0.72131887]
[1693592604087,0.10692,25494.0,25493.0,0.72431887]
[1693592604980,0.26357694,25494.0,25493.0,0.72431887]
[1693592605182,0.10692,25494.0,25493.0,0.72431887]
[1693592605387,0.26357694,25494.0,25493.0,0.72431887]
[1693592606181,0.26356252,25494.0,25493.0,0.72431887]
[1693592606783,0.10692,25494.0,25493.0,0.72431887]
[1693592606988,0.26356252,25494.0,25493.0,0.72431887]
[1693592607285,0.68766252,25494.0,25493.0,0.72431887]
[1693592608388,0.53102,25494.0,25493.0,0.72431887]
[1693592609982,0.53102,25494.0,25493.0,0.69350069]
[1693592610579,0.53102,25494.0,25493.0,0.72431887]
[1693592611391,0.53102,25494.0,25493.0,0.69350069]
[1693592612291,1.04785091,25494.0,25493.0,0.69350069]
[1693592612592,1.37167143,25494.0,25493.0,0.54631769]
[1693592612790,1.37160361,25494.0,25493.0,0.54631769]
[1693592613293,1.21502891,25494.0,25493.0,0.54631769]
[1693592614589,1.10565077,25494.0,25493.0,0.54631769]
[1693592614790,1.06785091,25494.0,25493.0,0.54631769]
[1693592615786,1.12569316,25494.0,25493.0,0.54631769]
[1693592616994,1.12569316,25494.0,25493.0,0.69350069]
[1693592617598,1.12569316,25494.0,25493.0,0.54631769]
[1693592618693,1.57662386,25494.0,25493.0,0.19020269]
[1693592618895,0.00392,25488.0,25487.0,0.294433]
[1693592619197,1.11213091,25488.0,25487.0,0.39272483]
[1693592619394,1.11213091,25488.0,25487.0,0.24550883]
[1693592619599,0.00392,25487.0,25486.0,0.14722]
[1693592619800,0.94493091,25487.0,25486.0,0.53995503]
[1693592619984,1.11214891,25487.0,25486.0,0.53995503]
[1693592620190,1.11214891,25487.0,25486.0,0.24551503]
[1693592620792,1.11214891,25487.0,25486.0,0.39273903]
[1693592621091,1.12814891,25487.0,25486.0,0.39473903]
[1693592621695,1.14714891,25487.0,25486.0,0.39673903]
[1693592621897,1.16014891,25487.0,25486.0,0.39573903]
[1693592623002,1.16014891,25487.0,25486.0,0.24851503]
[1693592623207,1.30736691,25487.0,25486.0,0.24851503]
[1693592624196,0.937674,25487.0,25486.0,0.24851503]
[1693592624506,0.917674,25487.0,25486.0,0.54296303]
[1693592625095,1.14014891,25487.0,25486.0,0.54296303]
[1693592625895,0.99293091,25487.0,25486.0,0.69018703]
[1693592626102,0.47602,25487.0,25486.0,0.69018703]
[1693592626299,0.4721,25487.0,25486.0,0.85741103]
[1693592626601,0.048,25487.0,25486.0,1.31232921]
[1693592627897,0.048,25487.0,25486.0,1.31032921]
[1693592628102,0.036,25487.0,25486.0,1.31132921]
[1693592628493,0.029,25487.0,25486.0,1.31032921]
[1693592628690,0.036,25487.0,25486.0,1.31132921]
[1693592629708,0.024,25487.0,25486.0,1.31232921]
[1693592631504,0.024,25487.0,25486.0,1.28151103]
[1693592631800,0.02792,25487.0,25486.0,1.11428703]
[1693592631998,0.96892891,25487.0,25486.0,0.69018703]
[1693592632205,1.13614591,25487.0,25486.0,0.24851503]
[1693592632800,1.14914591,25487.0,25486.0,0.39673803]
[1693592634205,1.13614591,25487.0,25486.0,0.39573803]
[1693592634906,1.13614591,25487.0,25486.0,0.54296103]
[1693592636404,1.19539747,25487.0,25486.0,0.54296103]
[1693592637101,1.19539747,25487.0,25486.0,0.39573803]
[1693592637302,1.17539747,25487.0,25486.0,0.39573803]
[1693592637803,1.19539747,25487.0,25486.0,0.39573803]
[1693592641706,1.19539747,25487.0,25486.0,0.24851503]
[1693592642106,1.17539747,25487.0,25486.0,0.24851503]
[1693592642508,2.52261447,25487.0,25486.0,0.24851503]
[1693592644407,2.37539747,25487.0,25486.0,0.24851503]
[1693592645909,2.37539747,25487.0,25486.0,0.17857881]
[1693592647107,2.37539747,25487.0,25486.0,0.003]
[1693592647308,0.00392,25485.0,25484.0,0.147231]
[1693592647506,0.869704,25485.0,25484.0,0.147231]
[1693592647905,1.09217891,25485.0,25484.0,0.147231]
[1693592648302,0.00392,25484.0,25483.0,0.147237]
[1693592648513,1.09219691,25484.0,25483.0,0.147237]
[1693592649610,1.09219691,25484.0,25483.0,0.294477]
[1693592650009,0.4241,25484.0,25483.0,0.461717]
[1693592650416,0.4241,25484.0,25483.0,0.49253518]
[1693592650604,0.4431,25484.0,25483.0,0.463717]
[1693592650908,0.4701,25484.0,25483.0,0.463717]
[1693592651616,0.4701,25484.0,25483.0,0.49453518]
[1693592652109,0.4701,25484.0,25483.0,0.47453518]
[1693592652301,0.4701,25484.0,25483.0,0.443717]
[1693592652503,0.4701,25484.0,25483.0,0.463717]
[1693592652806,0.4701,25484.0,25483.0,0.443717]
[1693592653608,0.4701,25484.0,25483.0,0.47453518]
[1693592655108,0.4701,25484.0,25483.0,0.443717]
[1693592655515,0.47402,25484.0,25483.0,0.443717]
[1693592656015,0.58711677,25484.0,25483.0,0.443717]
[1693592656217,0.47402,25484.0,25483.0,0.47453518]
[1693592656402,0.5057192,25484.0,25483.0,0.443717]
[1693592656908,0.5057192,25484.0,25483.0,0.47453518]
[1693592657114,0.5057192,25484.0,25483.0,0.443717]
[1693592657813,0.5057192,25484.0,25483.0,0.47453518]
[1693592659012,0.5017992,25484.0,25483.0,0.47453518]
[1693592660618,0.5017992,25484.0,25483.0,0.62177518]
[1693592662208,0.046,25484.0,25483.0,1.29113225]
[1693592663218,0.046,25484.0,25483.0,1.62898383]
[1693592663420,0.03136574,25489.0,25486.0,0.73611]
[1693592663607,0.58065995,25490.0,25488.0,1.012944]
[1693592663810,0.58065995,25490.0,25488.0,1.032944]
[1693592664211,0.58065995,25490.0,25489.0,0.03081818]
[1693592664408,0.15655995,25490.0,25489.0,1.04373818]
[1693592664622,0.15655995,25491.0,25489.0,1.04373818]
[1693592664813,0.037,25490.0,25489.0,0.58882]
[1693592665015,0.037,25490.0,25489.0,1.01292]
[1693592665311,0.028,25490.0,25489.0,1.04673818]
[1693592666324,0.064,25490.0,25489.0,1.04673818]
[1693592667021,0.05,25490.0,25489.0,1.04973818]
[1693592667211,0.05,25490.0,25489.0,1.06973818]
[1693592667615,0.014,25490.0,25489.0,1.06573818]
[1693592667913,0.036,25490.0,25489.0,1.06873818]
[1693592668120,0.036,25490.0,25489.0,1.49283818]
[1693592668720,0.036,25490.0,25489.0,1.57093993]
[1693592669415,0.036,25490.0,25489.0,1.49283818]
[1693592669719,0.036,25490.0,25489.0,1.57093993]
[1693592669918,0.008,25490.0,25489.0,1.56893993]
[1693592670122,0.15655995,25496.0,25493.0,0.73591]
[1693592670319,0.15655995,25497.0,25495.0,0.4241]
[1693592670519,0.15655995,25498.0,25496.0,1.04357818]
[1693592670720,0.15655995,25498.0,25497.0,0.4241]
[1693592670921,0.15655995,25498.0,25497.0,1.012736]
[1693592671122,0.15655995,25498.0,25497.0,1.04355418]
[1693592671323,0.2533972,25499.0,25497.0,1.06355418]
[1693592671624,0.0658,25499.0,25498.0,0.75491818]
[1693592671920,0.0658,25499.0,25498.0,1.36353018]
[1693592672514,0.15655995,25503.0,25501.0,0.3]
[1693592672823,0.15656933,25503.0,25502.0,1.01262]
[1693592673220,0.15656933,25503.0,25502.0,1.04343818]
[1693592673526,0.15656933,25505.0,25502.0,1.04343818]
[1693592673728,0.15656933,25505.0,25504.0,0.4241]
[1693592673922,0.15656933,25505.0,25504.0,1.012572]
[1693592674318,0.15656933,25506.0,25504.0,1.04339018]
[1693592674526,0.60181333,25506.0,25505.0,0.4241]
[1693592674718,0.60181333,25506.0,25505.0,0.571212]
[1693592675422,0.445244,25506.0,25505.0,0.718325]
[1693592675818,0.298134,25506.0,25505.0,0.74914318]
[1693592676019,0.298134,25506.0,25505.0,0.718325]
[1693592676429,0.44823077,25506.0,25505.0,0.721325]
[1693592676923,0.90933077,25506.0,25505.0,0.300225]
[1693592678226,0.796234,25506.0,25505.0,0.300225]
[1693592678531,0.50202,25506.0,25505.0,0.447338]
[1693592678831,0.50202,25506.0,25505.0,0.47815618]
[1693592679027,0.943341,25506.0,25505.0,0.006]
[1693592679227,1.22354477,25506.0,25505.0,0.006]
[1693592679625,2.95702291,25506.0,25505.0,0.006]
[1693592680326,0.00392,25501.0,25499.0,0.725348]
[1693592680524,0.00392,25499.0,25498.0,0.14715]
[1693592680727,0.722316,25499.0,25498.0,0.14715]
[1693592680921,1.09193891,25499.0,25498.0,0.294304]
[1693592681534,0.98256077,25499.0,25498.0,0.294304]
[1693592682125,1.09193891,25499.0,25498.0,0.294304]
[1693592682434,1.12693891,25499.0,25498.0,0.296304]
[1693592682731,0.333216,25499.0,25498.0,0.75122218]
[1693592683328,0.334216,25499.0,25498.0,0.75122218]
[1693592683529,0.338216,25499.0,25498.0,0.77422218]
[1693592683729,0.338216,25499.0,25498.0,0.743404]
[1693592684037,0.334216,25499.0,25498.0,0.75122218]
[1693592684225,0.370216,25499.0,25498.0,0.75322218]
[1693592684425,0.370216,25499.0,25498.0,0.90037618]
[1693592684625,0.370216,25499.0,25498.0,0.869558]
[1693592686129,0.370216,25499.0,25498.0,0.90037618]
[1693592689131,0.370216,25499.0,25498.0,0.869558]
[1693592689423,0.402101,25499.0,25498.0,0.869558]
[1693592689739,0.402101,25499.0,25498.0,0.90037618]
[1693592692825,0.103885,25499.0,25498.0,0.90037618]
[1693592693027,0.072,25499.0,25498.0,1.36753018]
[1693592693536,0.00392,25506.0,25502.0,0.3]
[1693592693746,0.00392,25506.0,25505.0,0.4241]
[1693592693926,0.00392,25506.0,25505.0,1.012552]
[1693592694440,0.00392,25506.0,25505.0,1.04337018]
[1693592694829,0.00392,25506.0,25505.0,1.04637018]
[1693592695140,0.03548366,25506.0,25505.0,1.04637018]
[1693592695338,0.00392,25506.0,25505.0,1.04637018]
[1693592696943,0.02692,25506.0,25505.0,1.04537018]
[1693592697335,0.05392,25506.0,25505.0,1.04737018]
[1693592699043,0.05,25506.0,25505.0,1.04737018]
[1693592700834,0.05,25506.0,25505.0,1.79147018]
[1693592702045,0.037,25506.0,25505.0,1.79047018]
[1693592702242,0.00392,25512.0,25505.0,1.79047018]
[1693592702449,0.03606739,25512.0,25511.0,0.4241]
[1693592702640,0.03606739,25512.0,25511.0,0.89615218]
[1693592702641,0.02392,25512.0,25511.0,0.89615218]
[1693592703545,0.03192,25512.0,25511.0,0.89815218]
[1693592704441,0.03192,25512.0,25511.0,0.867334]
[1693592704847,0.06892,25512.0,25511.0,0.90115218]
[1693592706542,0.06892,25512.0,25511.0,0.870334]
[1693592706740,0.510139,25512.0,25511.0,0.576178]
[1693592706945,0.510139,25512.0,25511.0,0.723257]
[1693592707148,0.73261391,25512.0,25511.0,0.723257]
[1693592707850,0.363066,25512.0,25511.0,0.870336]
[1693592708046,0.215993,25512.0,25511.0,0.870336]
[1693592708252,0.06892,25512.0,25511.0,1.04823318]
[1693592708848,0.73261391,25512.0,25511.0,0.723257]
[1693592709049,0.73261391,25512.0,25511.0,0.576178]
[1693592709353,0.89968691,25512.0,25511.0,0.4291]
[1693592709554,0.75261391,25512.0,25511.0,0.4291]
[1693592710155,1.17671391,25512.0,25511.0,0.005]
[1693592711549,1.33258612,25512.0,25511.0,0.005]
[1693592711751,3.27965912,25512.0,25511.0,0.005]
[1693592712050,3.12378691,25512.0,25511.0,0.005]
[1693592712353,3.31862717,25512.0,25511.0,0.005]
[1693592715056,3.12378691,25512.0,25511.0,0.005]
[1693592715651,3.31919822,25512.0,25511.0,0.005]
[1693592716751,3.12378691,25512.0,25511.0,0.005]
[1693592716956,3.18136221,25512.0,25511.0,0.005]
[1693592717360,1.77671391,25512.0,25511.0,0.005]
[1693592717555,1.37213888,25512.0,25511.0,0.005]
[1693592717955,1.17671391,25512.0,25511.0,0.005]
[1693592718759,0.530139,25512.0,25511.0,0.4291]
[1693592719053,0.66647728,25512.0,25511.0,0.4291]
[1693592719754,0.00392,25517.0,25511.0,1.337412]
[1693592719954,0.00392,25517.0,25516.0,0.4241]
[1693592720162,0.00392,25517.0,25516.0,0.89606818]
[1693592720460,0.298008,25517.0,25516.0,0.86525]
[1693592720653,0.445052,25517.0,25516.0,0.7182]
[1693592720854,0.447052,25517.0,25516.0,0.7182]
[1693592721258,0.00592,25517.0,25516.0,0.86525]
[1693592721559,0.00592,25517.0,25516.0,0.86625]
[1693592721751,0.00592,25517.0,25516.0,0.89706818]
[1693592722358,0.03353296,25517.0,25516.0,0.89706818]
[1693592722554,0.152963,25517.0,25516.0,0.86825]
[1693592722861,0.149043,25517.0,25516.0,0.86825]
[1693592723561,0.149043,25517.0,25516.0,0.89906818]
[1693592723763,0.296086,25517.0,25516.0,0.86825]
[1693592724663,0.40918277,25517.0,25516.0,0.86825]
[1693592725063,0.52248091,25517.0,25516.0,0.86825]
[1693592725362,0.296086,25517.0,25516.0,0.86825]
[1693592726359,0.300006,25517.0,25516.0,0.86825]
[1693592726555,0.40938414,25517.0,25516.0,0.86825]
[1693592726957,0.300006,25517.0,25516.0,0.86825]
[1693592727363,0.40938414,25517.0,25516.0,0.86825]
[1693592727559,0.296086,25517.0,25516.0,0.86825]
[1693592727870,0.51856091,25517.0,25516.0,0.86825]
[1693592728058,0.41310277,25517.0,25516.0,0.86825]
[1693592728268,0.56014577,25517.0,25516.0,0.7212]
[1693592728459,0.56014577,25517.0,25516.0,0.4271]
[1693592728460,1.10970391,25517.0,25516.0,0.4271]
[1693592728654,1.25674691,25517.0,25516.0,0.4271]
[1693592729169,1.25674691,25517.0,25516.0,0.003]
[1693592729464,1.41278114,25517.0,25516.0,0.003]
[1693592729764,2.0517897,25517.0,25516.0,0.003]
[1693592730861,0.00392,25511.0,25510.0,0.4241]
[1693592731060,0.66762891,25511.0,25510.0,0.4241]
[1693592731264,0.66762891,25511.0,25510.0,0.39309676]
[1693592731466,0.81470691,25511.0,25510.0,0.39309676]
[1693592732065,0.81470691,25511.0,25510.0,0.43009676]
[1693592732269,0.81470691,25511.0,25510.0,0.46709676]
[1693592733169,0.81470691,25511.0,25510.0,0.43309676]
[1693592733170,0.81870691,25511.0,25510.0,0.43309676]
[1693592734157,0.81870691,25511.0,25510.0,0.39609676]
[1693592734370,0.81970691,25511.0,25510.0,0.39909676]
[1693592738476,2.44380691,25511.0,25510.0,0.006]
[1693592738672,2.59988996,25511.0,25510.0,0.006]
[1693592740969,2.59596996,25511.0,25510.0,0.006]
[1693592741170,2.44380691,25511.0,25510.0,0.006]
[1693592742168,2.63891072,25511.0,25510.0,0.006]
[1693592742767,2.65891072,25511.0,25510.0,0.006]
[1693592745362,2.46380691,25511.0,25510.0,0.006]
[1693592745774,2.4949298,25511.0,25510.0,0.006]
[1693592752387,2.72898115,25511.0,25510.0,0.006]
[1693592753972,1.01847366,25511.0,25510.0,0.006]
[1693592754377,1.1278518,25511.0,25510.0,0.006]
[1693592754577,1.2749328,25511.0,25510.0,0.006]
[1693592755580,1.42639491,25510.0,25508.0,0.14129031]
[1693592755886,1.2081221,25509.0,25508.0,0.14129031]
[1693592756085,1.31750024,25509.0,25508.0,0.14129031]
[1693592756487,1.43451701,25509.0,25507.0,0.587]
[1693592756692,0.53347814,25508.0,25507.0,0.587]
[1693592756984,1.23496691,25508.0,25507.0,0.1629]
[1693592757186,1.23496691,25508.0,25506.0,0.571208]
[1693592757488,0.70721013,25507.0,25506.0,0.571208]
[1693592757684,0.8203069,25507.0,25506.0,0.571208]
[1693592758588,0.82029962,25507.0,25506.0,0.572208]
[1693592758992,0.82129962,25507.0,25506.0,0.572208]
[1693592759186,0.86743701,25507.0,25506.0,0.574208]
[1693592759388,0.00392,25505.0,25501.0,0.147134]
[1693592759600,0.5806391,25502.0,25500.0,0.3597632]
[1693592759794,0.571233,25502.0,25501.0,0.24541028]
[1693592759995,0.94083891,25502.0,25501.0,0.24541028]
[1693592760300,1.10797191,25502.0,25501.0,0.24541028]
[1693592760695,1.08797191,25502.0,25501.0,0.24541028]
[1693592760895,1.25902491,25502.0,25501.0,0.24541028]
[1693592761100,1.41556401,25502.0,25499.0,0.0202]
[1693592761406,0.22247491,25501.0,25500.0,0.24541333]
[1693592761595,1.23511891,25501.0,25500.0,0.24541333]
[1693592762496,1.23511891,25501.0,25500.0,0.26541333]
[1693592762698,1.25511891,25501.0,25500.0,0.26541333]
[1693592762892,1.25911891,25501.0,25500.0,0.26841333]
[1693592764103,1.26911891,25501.0,25500.0,0.25141333]
[1693592766300,1.26911891,25501.0,25500.0,0.006]
[1693592766494,1.26911891,25501.0,25500.0,0.25140894]
[1693592768106,1.3002059,25501.0,25500.0,0.25140894]
[1693592768301,0.33935899,25501.0,25500.0,0.96978365]
[1693592768501,0.33935899,25501.0,25500.0,1.11692565]
[1693592768701,0.33935899,25501.0,25500.0,0.871526]
[1693592768902,0.45245576,25501.0,25500.0,0.871526]
[1693592769199,0.45245576,25501.0,25500.0,0.4301]
[1693592769200,0.7089699,25501.0,25500.0,0.4301]
[1693592769401,0.7289699,25501.0,25500.0,0.4301]
[1693592770206,1.1530699,25501.0,25500.0,0.006]
[1693592771408,1.1530699,25501.0,25500.0,0.25140526]
[1693592771607,1.1530699,25501.0,25500.0,0.006]
[1693592772111,1.1530699,25501.0,25500.0,0.25140505]
[1693592773312,1.1530699,25501.0,25500.0,0.006]
[1693592776116,1.1569899,25501.0,25500.0,0.006]
[1693592776412,1.1369899,25501.0,25500.0,0.006]
[1693592776614,1.1569899,25501.0,25500.0,0.006]
[1693592777118,0.66390091,25500.0,25499.0,0.270293]
[1693592777315,1.08800091,25500.0,25499.0,0.36855276]
[1693592777615,1.10800091,25500.0,25499.0,0.36855276]
[1693592778315,1.12000091,25500.0,25499.0,0.126146]
[1693592778513,0.4621,25500.0,25499.0,0.45426018]
[1693592778715,0.4421,25500.0,25499.0,0.71965994]
[1693592779113,0.4421,25500.0,25499.0,0.47426018]
[1693592779315,0.589242,25500.0,25499.0,0.47426018]
[1693592779517,0.589242,25500.0,25499.0,0.443442]
[1693592779719,0.589242,25500.0,25499.0,0.423442]
[1693592779925,0.70233877,25500.0,25499.0,0.423442]
[1693592780117,0.81171691,25500.0,25499.0,0.423442]
[1693592780313,0.95885891,25500.0,25499.0,0.423442]
[1693592780514,1.12992091,25500.0,25499.0,0.006]
[1693592781522,1.12992091,25500.0,25499.0,0.153148]
[1693592781911,1.10992091,25500.0,25499.0,0.153148]
[1693592782113,1.12992091,25500.0,25499.0,0.153148]
[1693592783111,1.12992091,25500.0,25499.0,0.39855427]
[1693592783310,1.02054277,25500.0,25499.0,0.39855427]
[1693592783721,1.02054277,25500.0,25499.0,0.54570227]
[1693592784127,1.12992091,25500.0,25499.0,0.54570227]
[1693592785020,1.02054277,25500.0,25499.0,0.54570227]
[1693592785219,1.12992091,25500.0,25499.0,0.54570227]
[1693592785428,1.02054277,25500.0,25499.0,0.54570227]
[1693592785619,1.02054277,25500.0,25499.0,0.39855427]
[1693592786026,1.12992091,25500.0,25499.0,0.39855427]
[1693592786927,1.1896246,25500.0,25499.0,0.39855427]
[1693592787930,1.1896246,25500.0,25499.0,0.25140627]
[1693592788327,1.3474246,25500.0,25499.0,0.25140627]
[1693592790630,1.4945666,25500.0,25499.0,0.25140627]
[1693592791530,1.6511057,25500.0,25499.0,0.25140627]
[1693592794034,1.6711057,25500.0,25499.0,0.25140627]
[1693592795234,1.5145666,25500.0,25499.0,0.25140627]
[1693592795432,1.4945666,25500.0,25499.0,0.25140627]
[1693592795626,1.5145666,25500.0,25499.0,0.25140627]
[1693592796034,1.71024048,25500.0,25499.0,0.10736158]
[1693592796234,0.00392,25496.0,25495.0,0.1604]
[1693592796430,1.23915491,25496.0,25494.0,0.24546047]
[1693592796634,0.00392,25495.0,25491.0,0.294383]
[1693592796834,0.441531,25494.0,25492.0,0.24546346]
[1693592797131,0.865646,25493.0,25492.0,0.24546346]
[1693592797334,0.865646,25493.0,25492.0,0.39265146]
[1693592797632,1.08812091,25493.0,25492.0,1.52374086]
[1693592798038,1.08812091,25493.0,25492.0,0.39265146]
[1693592798239,1.08912091,25493.0,25492.0,0.42965146]
[1693592799131,1.10412091,25493.0,25492.0,0.43265146]
[1693592800635,1.11212091,25493.0,25492.0,0.54583946]
[1693592800839,0.889646,25493.0,25492.0,0.54583946]
[1693592801039,0.889646,25493.0,25492.0,0.57665764]
[1693592801238,0.889646,25493.0,25492.0,0.54583946]
[1693592801741,0.742464,25493.0,25492.0,0.54583946]
[1693592802440,0.762464,25493.0,25492.0,0.54583946]
[1693592802828,0.742464,25493.0,25492.0,0.54583946]
[1693592803542,0.742464,25493.0,25492.0,0.57665764]
[1693592804037,0.742464,25493.0,25492.0,0.54583946]
[1693592804335,0.77430388,25493.0,25492.0,0.54583946]
[1693592804538,0.88740065,25493.0,25492.0,0.54583946]
[1693592805535,0.99677879,25493.0,25492.0,0.54583946]
[1693592805735,0.88740065,25493.0,25492.0,0.54583946]
[1693592806547,1.16396079,25493.0,25492.0,0.54583946]
[1693592806934,0.77430388,25493.0,25492.0,0.57665764]
[1693592807335,0.77430388,25493.0,25492.0,0.72384564]
[1693592807540,0.77430388,25493.0,25492.0,0.69302746]
[1693592807741,0.79430388,25493.0,25492.0,0.69302746]
[1693592808040,0.05583988,25493.0,25492.0,1.14794564]
[1693592808242,0.024,25493.0,25492.0,2.4261801]
[1693592808548,0.024,25493.0,25492.0,2.4461801]
[1693592809535,0.023,25493.0,25492.0,2.52398853]
[1693592809740,0.023,25493.0,25492.0,2.4461801]
[1693592809939,0.27427877,25493.0,25492.0,2.24517392]
[1693592810240,0.86556077,25493.0,25492.0,0.55283946]
[1693592810438,2.49322291,25493.0,25492.0,0.25846346]
[1693592810646,2.65802291,25493.0,25492.0,0.013]
[1693592810849,2.79471699,25493.0,25492.0,0.013]
[1693592811043,2.83389051,25493.0,25492.0,0.013]
[1693592811348,2.64402291,25493.0,25492.0,0.016]
[1693592811543,2.80066745,25493.0,25492.0,0.016]
[1693592811741,2.65102291,25493.0,25492.0,0.008]
[1693592811938,2.95102291,25493.0,25492.0,0.008]
[1693592812143,0.00392,25486.0,25485.0,0.147225]
[1693592812345,1.09216391,25486.0,25485.0,0.39273788]
[1693592812549,1.09216391,25486.0,25485.0,0.53996688]
[1693592812749,0.98278577,25486.0,25485.0,1.671277]
[1693592812948,0.869689,25486.0,25485.0,1.818506]
[1693592813243,0.4441,25486.0,25485.0,1.818506]
[1693592813447,0.4441,25486.0,25485.0,1.84932418]
[1693592813748,0.4241,25486.0,25485.0,2.07432665]
[1693592813949,0.4271,25486.0,25485.0,1.99655318]
[1693592814837,0.4341,25486.0,25485.0,1.99655318]
[1693592815647,0.4341,25486.0,25485.0,2.00726468]
[1693592816251,0.54347814,25486.0,25485.0,1.9764465]
[1693592816454,0.4741,25486.0,25485.0,1.9764465]
[1693592817149,0.4741,25486.0,25485.0,2.00726468]
[1693592817356,0.621323,25486.0,25485.0,1.8292175]
[1693592817946,0.748546,25486.0,25485.0,1.8292175]
[1693592818147,0.768546,25486.0,25485.0,1.8292175]
[1693592818350,0.748546,25486.0,25485.0,1.8292175]
[1693592818753,0.748546,25486.0,25485.0,1.86003568]
[1693592818950,0.728546,25486.0,25485.0,1.8292175]
[1693592819152,0.01,25486.0,25485.0,2.43136468]
[1693592824559,0.732466,25486.0,25485.0,1.86003568]
[1693592826051,0.43802,25486.0,25485.0,1.86003568]
[1693592826259,0.43802,25486.0,25485.0,2.00726468]
[1693592827051,0.01,25486.0,25485.0,2.43136468]
[1693592827253,0.01,25486.0,25485.0,2.45136468]
[1693592827457,0.01,25486.0,25485.0,2.75136468]
[1693592827847,0.03158545,25491.0,25487.0,0.736085]
[1693592828051,0.00392,25492.0,25487.0,0.736085]
[1693592828052,0.00392,25492.0,25490.0,0.4241]
[1693592828248,0.00392,25492.0,25491.0,1.0235875]
[1693592828446,0.02392,25492.0,25491.0,1.2998777]
[1693592828661,0.02392,25492.0,25491.0,2.43096458]
[1693592828960,0.02392,25492.0,25491.0,1.2998777]
[1693592829952,0.04392,25492.0,25491.0,1.3018777]
[1693592830755,0.04392,25492.0,25491.0,1.3038777]
[1693592830965,0.07568145,25492.0,25491.0,1.3038777]
[1693592831159,0.07568145,25492.0,25491.0,2.43499227]
[1693592832361,0.05568145,25492.0,25491.0,2.43499227]
[1693592832562,0.07568145,25492.0,25491.0,1.3038777]
[1693592833769,0.22286945,25492.0,25491.0,1.3038777]
[1693592834070,1.22163022,25492.0,25491.0,0.0147115]
[1693592834361,1.31100836,25492.0,25491.0,0.0147115]
[1693592834670,1.33100836,25492.0,25491.0,0.0147115]
[1693592836465,1.93100836,25492.0,25491.0,0.0147115]
[1693592836665,0.00392,25487.0,25486.0,0.147221]
[1693592836965,0.00392,25487.0,25486.0,1.37688723]
[1693592836966,2.45936291,25487.0,25486.0,1.37688723]